fUSD/lending_fUSD_20251210
["ID","MTS","AMOUNT","RATE_DAILY","PERIOD"]
[398048705,1765337454646,-500.0,0.00015796,2]
[398048706,1765337454654,-500.0,0.00015796,2]
[398048707,1765337454663,-500.0,0.00015796,2]
[398048708,1765337454672,-500.0,0.00015796,2]
[398048709,1765337454681,-153.89422174,0.00015796,2]
[398048710,1765337454690,-305.54534749,0.00015796,2]
[398048711,1765337454699,-1000.0,0.00015799,2]
[398048712,1765337454708,-3383.91618068,0.00015819,2]
[398048713,1765337454717,-166.66,0.00015822,2]
[398048714,1765337454726,-150.0,0.0001583,2]
[398048715,1765337454736,-150.0,0.00015831,2]
[398048716,1765337454747,-151.55115124,0.00015831,2]
[398048717,1765337454758,-150.0,0.00015831,2]
[398048718,1765337454770,-500.0,0.00015831,2]
[398048719,1765337454779,-150.0,0.00015831,2]
[398048720,1765337454788,-150.0,0.00015831,2]
[398048721,1765337454797,-150.0,0.00015831,2]
[398048722,1765337454806,-549.460588,0.00015831,2]
[398048723,1765337454817,-5282.0,0.00015835,2]
[398048724,1765337454826,-5282.0,0.00015852,2]
[398048725,1765337454835,-5282.0,0.00015866,2]
[398048726,1765337454850,-500.0,0.00015895,2]
[398048727,1765337454864,-500.0,0.00015896,2]
[398048728,1765337454874,-151.000001,0.00015897,2]
[398048729,1765337454884,-172.52675,0.00015897,2]
[398048730,1765337454894,-643.26,0.000159,2]
[398048731,1765337454904,-1000.0,0.000159,2]
[398048732,1765337454912,-1006.0,0.000159,2]
[398048733,1765337454922,-1000.0,0.000159,2]
[398048734,1765337454931,-5438.10442041,0.00015959,2]
[398048735,1765337454940,-150.0,0.00015967,2]
[398048736,1765337454949,-934.55,0.00015967,2]
[398048737,1765337454958,-842.62,0.00015967,2]
[398048738,1765337454967,-970.06,0.00015967,2]
[398048739,1765337454976,-500.0,0.00015967,2]
[398048740,1765337454985,-500.0,0.00015967,2]
[398048741,1765337454994,-500.0,0.00015967,2]
[398048742,1765337455004,-877.85,0.00015967,2]
[398048743,1765337455013,-500.0,0.00015967,2]
[398048744,1765337455022,-500.0,0.00015967,2]
[398048745,1765337455034,-507.73,0.00015967,2]
[398048746,1765337455049,-815.45,0.00015967,2]
[398048747,1765337455058,-500.0,0.00015967,2]
[398048748,1765337455067,-500.0,0.00015967,2]
[398048749,1765337455076,-500.0,0.00015967,2]
[398048750,1765337455085,-500.0,0.00015967,2]
[398048751,1765337455093,-500.0,0.00015967,2]
[398048752,1765337455102,-572.12,0.00015967,2]
[398048753,1765337455111,-500.0,0.00015967,2]
[398048754,1765337455120,-500.0,0.00015967,2]
[398048755,1765337455129,-714.26,0.00015967,2]
[398048756,1765337455138,-662.51,0.00015967,2]
[398048757,1765337455147,-837.92,0.00015967,2]
[398048758,1765337455156,-1789.73,0.00015967,2]
[398048759,1765337455164,-500.0,0.00015967,2]
[398048760,1765337455174,-500.0,0.00015967,2]
[398048761,1765337455183,-500.0,0.00015967,2]
[398048762,1765337455192,-500.0,0.00015967,2]
[398048763,1765337455201,-509.02,0.00015967,2]
[398048764,1765337455210,-500.0,0.00015967,2]
[398048765,1765337455221,-643.08,0.00015967,2]
[398048766,1765337455230,-500.0,0.00015967,2]
[398048767,1765337455239,-711.78,0.00015967,2]
[398048768,1765337455248,-733.15,0.00015967,2]
[398048769,1765337455258,-500.0,0.00015967,2]
[398048770,1765337455267,-533.38,0.00015967,2]
[398048771,1765337455276,-500.0,0.00015967,2]
[398048772,1765337455285,-825.68,0.00015967,2]
[398048773,1765337455294,-500.0,0.00015967,2]
[398048774,1765337455303,-815.62,0.00015967,2]
[398048775,1765337455313,-765.24,0.00015967,2]
[398048776,1765337455322,-500.0,0.00015967,2]
[398048777,1765337455331,-500.0,0.00015967,2]
[398048778,1765337455341,-500.0,0.00015967,2]
[398048779,1765337455351,-610.75,0.00015967,2]
[398048780,1765337455360,-500.0,0.00015967,2]
[398048781,1765337455369,-754.45,0.00015967,2]
[398048782,1765337455379,-534.37,0.00015967,2]
[398048783,1765337455389,-767.63,0.00015967,2]
[398048784,1765337455398,-965.89,0.00015967,2]
[398048785,1765337455407,-1103.32,0.00015967,2]
[398048786,1765337455416,-1238.54,0.00015967,2]
[398048787,1765337455426,-1081.64,0.00015967,2]
[398048788,1765337455436,-675.02,0.00015967,2]
[398048789,1765337455447,-894.17,0.00015967,2]
[398048790,1765337455458,-500.0,0.00015967,2]
[398048791,1765337455468,-841.07,0.00015967,2]
[398048792,1765337455478,-500.0,0.00015967,2]
[398048793,1765337455488,-816.27,0.00015967,2]
[398048794,1765337455497,-559.15,0.00015967,2]
[398048795,1765337455508,-898.22,0.00015967,2]
[398048796,1765337455517,-940.86,0.00015967,2]
[398048797,1765337455527,-500.0,0.00015967,2]
[398048798,1765337455536,-459.745672,0.00015967,2]
[398048799,1765337455546,-949.81,0.00015967,2]
[398048800,1765337455555,-500.0,0.00015967,2]
[398048801,1765337455564,-500.0,0.00015967,2]
[398048802,1765337455574,-1209.02,0.00015967,2]
[398048803,1765337455583,-2619.53,0.00015967,2]
[398048804,1765337455592,-500.0,0.00015967,2]
[398048805,1765337455601,-530.64,0.00015967,2]
[398048806,1765337455610,-500.0,0.00015967,2]
[398048807,1765337455619,-500.0,0.00015967,2]
[398048808,1765337455633,-485.7972188,0.00015967,2]
[398048809,1765337455642,-500.0,0.00015967,2]
[398048810,1765337455651,-503.09790829,0.00015967,2]
[398048811,1765337455660,-605.76,0.00015967,2]
[398048812,1765337455670,-500.0,0.00015967,2]
[398048813,1765337455679,-563.88,0.00015967,2]
[398048814,1765337455688,-500.0,0.00015967,2]
[398048815,1765337455698,-500.0,0.00015967,2]
[398048816,1765337455707,-500.0,0.00015967,2]
[398048817,1765337455716,-500.0,0.00015967,2]
[398048818,1765337455724,-500.0,0.00015967,2]
[398048819,1765337455733,-565.36,0.00015967,2]
[398048820,1765337455904,-500.0,0.00015967,2]
[398048821,1765337455913,-500.0,0.00015967,2]
[398048822,1765337455923,-500.0,0.00015967,2]
[398048823,1765337455934,-500.0,0.00015967,2]
[398048824,1765337455944,-500.0,0.00015967,2]
[398048825,1765337455952,-500.0,0.00015967,2]
[398048826,1765337455962,-500.0,0.00015967,2]
[398048827,1765337455971,-500.0,0.00015967,2]
[398048828,1765337455981,-500.0,0.00015967,2]
[398048829,1765337455989,-500.0,0.00015967,2]
[398048830,1765337455998,-500.0,0.00015967,2]
[398048831,1765337456008,-500.0,0.00015967,2]
[398048832,1765337456017,-500.0,0.00015967,2]
[398048833,1765337456026,-978.77,0.00015967,2]
[398048834,1765337456035,-500.0,0.00015967,2]
[398048835,1765337456045,-646.08,0.00015967,2]
[398048836,1765337456055,-500.0,0.00015967,2]
[398048837,1765337456066,-646.08,0.00015967,2]
[398048838,1765337456076,-500.0,0.00015967,2]
[398048839,1765337456085,-280.75208674,0.00015967,2]
[398048840,1765337456094,-500.0,0.00015967,2]
[398048841,1765337456103,-500.0,0.00015967,2]
[398048842,1765337456112,-500.0,0.00015967,2]
[398048843,1765337456122,-500.0,0.00015967,2]
[398048844,1765337456132,-500.0,0.00015967,2]
[398048845,1765337456141,-425.94844738,0.00015967,2]
[398048846,1765337456151,-500.0,0.00015967,2]
[398048847,1765337456161,-150.0,0.00015968,2]
[398048848,1765337456170,-192.083485,0.00015968,2]
[398048849,1765337456180,-165.10848843,0.00015968,2]
[398048850,1765337456190,-150.0,0.00015968,2]
[398048851,1765337456199,-150.0,0.00015968,2]
[398048852,1765337456209,-150.0,0.00015968,2]
[398048853,1765337456219,-500.0,0.00015968,2]
[398048854,1765337456229,-500.0,0.00015968,2]
[398048855,1765337456238,-500.0,0.00015968,2]
[398048856,1765337456247,-529.1,0.00015968,2]
[398048857,1765337456256,-500.0,0.00015968,2]
[398048858,1765337456265,-500.0,0.00015968,2]
[398048859,1765337456275,-511.8480753,0.00015968,2]
[398048860,1765337456284,-500.0,0.00015968,2]
[398048861,1765337456293,-500.0,0.00015968,2]
[398048862,1765337456302,-500.0,0.00015968,2]
[398048863,1765337456311,-500.0,0.00015968,2]
[398048864,1765337456320,-506.39578637,0.00015968,2]
[398048865,1765337456329,-500.0,0.00015968,2]
[398048866,1765337456339,-500.0,0.00015968,2]
[398048867,1765337456349,-500.0,0.00015968,2]
[398048868,1765337456358,-500.0,0.00015968,2]
[398048869,1765337456368,-500.0,0.00015968,2]
[398048870,1765337456377,-554.06,0.00015968,2]
[398048871,1765337456388,-500.0,0.00015968,2]
[398048872,1765337456397,-554.49,0.00015968,2]
[398048873,1765337456406,-500.0,0.00015968,2]
[398048874,1765337456417,-500.0,0.00015968,2]
[398048875,1765337456426,-500.0,0.00015968,2]
[398048876,1765337456435,-500.0,0.00015968,2]
[398048877,1765337456445,-500.0,0.00015968,2]
[398048878,1765337456454,-500.0,0.00015968,2]
[398048879,1765337456463,-602.08,0.00015968,2]
[398048880,1765337456473,-500.0,0.00015968,2]
[398048881,1765337456482,-500.0,0.00015968,2]
[398048882,1765337456492,-500.0,0.00015968,2]
[398048883,1765337456501,-500.0,0.00015968,2]
[398048884,1765337456511,-500.0,0.00015968,2]
[398048885,1765337456520,-225.75884039,0.00015968,2]
[398048886,1765337456530,-500.0,0.00015968,2]
[398048887,1765337456539,-510.86903134,0.00015968,2]
[398048888,1765337456548,-500.0,0.00015968,2]
[398048889,1765337456558,-500.0,0.00015968,2]
[398048890,1765337456567,-196.8660134,0.00015968,2]
[398048891,1765337456576,-500.0,0.00015968,2]
[398048892,1765337456585,-500.0,0.00015968,2]
[398048893,1765337456594,-500.0,0.00015968,2]
[398048894,1765337456603,-500.0,0.00015968,2]
[398048895,1765337456612,-500.0,0.00015968,2]
[398048896,1765337456621,-500.0,0.00015968,2]
[398048897,1765337456630,-500.0,0.00015968,2]
[398048898,1765337456638,-500.0,0.00015968,2]
[398048899,1765337456647,-500.0,0.00015968,2]
[398048900,1765337456656,-500.0,0.00015968,2]
[398048901,1765337456664,-500.0,0.00015968,2]
[398048902,1765337456674,-500.0,0.00015968,2]
[398048903,1765337456682,-500.0,0.00015968,2]
[398048904,1765337456691,-822.63,0.00015968,2]
[398048905,1765337456700,-503.71470121,0.00015968,2]
[398048906,1765337456709,-510.70315776,0.00015968,2]
[398048907,1765337456718,-612.64,0.00015968,2]
[398048908,1765337456727,-500.0,0.00015968,2]
[398048909,1765337456736,-565.60410274,0.00015968,2]
[398048910,1765337456745,-500.0,0.00015968,2]
[398048911,1765337456756,-500.0,0.00015968,2]
[398048912,1765337456767,-503.51102912,0.00015968,2]
[398048913,1765337456777,-500.0,0.00015968,2]
[398048914,1765337456786,-500.0,0.00015968,2]
[398048915,1765337456795,-500.0,0.00015968,2]
[398048916,1765337456804,-500.0,0.00015968,2]
[398048917,1765337456813,-500.0,0.00015968,2]
[398048918,1765337456823,-500.0,0.00015968,2]
[398048919,1765337456833,-744.16,0.00015968,2]
[398048920,1765337456844,-500.0,0.00015968,2]
[398048921,1765337456854,-572.91,0.00015968,2]
[398048922,1765337456863,-500.0,0.00015968,2]
[398048923,1765337456873,-500.0,0.00015968,2]
[398048924,1765337456883,-500.0,0.00015968,2]
[398048925,1765337456894,-1000.0,0.00015968,2]
[398048926,1765337456904,-778.1,0.00015968,2]
[398048927,1765337456917,-500.0,0.00015968,2]
[398048928,1765337456937,-500.0,0.00015968,2]
[398048929,1765337456953,-500.0,0.00015968,2]
[398048930,1765337456973,-500.0,0.00015968,2]
[398048931,1765337456992,-500.0,0.00015968,2]
[398048932,1765337457007,-500.0,0.00015968,2]
[398048933,1765337457026,-546.77,0.00015968,2]
[398048934,1765337457044,-492.78523499,0.00015968,2]
[398048935,1765337457061,-500.0,0.00015968,2]
[398048936,1765337457080,-500.0,0.00015968,2]
[398048937,1765337457096,-509.98573935,0.00015968,2]
[398048938,1765337457114,-545.37,0.00015968,2]
[398048939,1765337457128,-500.0,0.00015968,2]
[398048940,1765337457142,-500.0,0.00015968,2]
[398048941,1765337457159,-500.0,0.00015968,2]
[398048942,1765337457172,-688.34,0.00015968,2]
[398048943,1765337457188,-500.0,0.00015968,2]
[398048944,1765337457201,-500.0,0.00015968,2]
[398048945,1765337457215,-500.0,0.00015968,2]
[398048946,1765337457229,-588.02,0.00015968,2]
[398048947,1765337457243,-500.0,0.00015968,2]
[398048948,1765337457257,-500.0,0.00015968,2]
[398048949,1765337457272,-606.18,0.00015968,2]
[398048950,1765337457292,-500.0,0.00015968,2]
[398048951,1765337457306,-500.0,0.00015968,2]
[398048952,1765337457320,-500.0,0.00015968,2]
[398048953,1765337457334,-500.0,0.00015968,2]
[398048954,1765337457349,-500.0,0.00015968,2]
[398048955,1765337457365,-500.0,0.00015968,2]
[398048956,1765337457380,-544.37,0.00015968,2]
[398048957,1765337457395,-533.77,0.00015968,2]
[398048958,1765337457409,-500.0,0.00015968,2]
[398048959,1765337457425,-500.0,0.00015968,2]
[398048960,1765337457440,-500.0,0.00015968,2]
[398048961,1765337457455,-500.0,0.00015968,2]
[398048962,1765337457470,-500.0,0.00015968,2]
[398048963,1765337457484,-500.0,0.00015968,2]
[398048964,1765337457500,-500.0,0.00015968,2]
[398048965,1765337457514,-500.0,0.00015968,2]
[398048966,1765337457528,-507.90767775,0.00015968,2]
[398048967,1765337457543,-500.0,0.00015968,2]
[398048968,1765337457557,-538.76,0.00015968,2]
[398048969,1765337457572,-500.0,0.00015968,2]
[398048970,1765337457589,-500.0,0.00015968,2]
[398048971,1765337457605,-500.0,0.00015968,2]
[398048972,1765337457620,-500.0,0.00015968,2]
[398048973,1765337457635,-679.16,0.00015968,2]
[398048974,1765337457651,-500.0,0.00015968,2]
[398048975,1765337457666,-500.0,0.00015968,2]
[398048976,1765337457680,-504.77489294,0.00015968,2]
[398048977,1765337457698,-500.0,0.00015968,2]
[398048978,1765337457712,-771.2,0.00015968,2]
[398048979,1765337457727,-703.77,0.00015968,2]
[398048980,1765337457741,-558.05,0.00015968,2]
[398048981,1765337457755,-614.29,0.00015968,2]
[398048982,1765337457769,-500.0,0.00015968,2]
[398048983,1765337457783,-500.0,0.00015968,2]
[398048984,1765337457799,-500.0,0.00015968,2]
[398048985,1765337457814,-500.0,0.00015968,2]
[398048986,1765337457828,-500.0,0.00015968,2]
[398048987,1765337457841,-563.95,0.00015968,2]
[398048988,1765337457855,-500.0,0.00015968,2]
[398048989,1765337457872,-500.0,0.00015968,2]
[398048990,1765337457887,-500.0,0.00015968,2]
[398048991,1765337457901,-500.0,0.00015968,2]
[398048992,1765337457917,-500.0,0.00015968,2]
[398048993,1765337457932,-740.2,0.00015968,2]
[398048994,1765337457946,-592.15,0.00015968,2]
[398048995,1765337457961,-500.0,0.00015968,2]
[398048996,1765337457974,-500.0,0.00015968,2]
[398048997,1765337457988,-500.0,0.00015968,2]
[398048998,1765337458003,-500.0,0.00015968,2]
[398048999,1765337458017,-500.0,0.00015968,2]
[398049000,1765337458032,-500.0,0.00015968,2]
[398049001,1765337458049,-450.44536404,0.00015968,2]
[398049002,1765337458063,-500.0,0.00015968,2]
[398049003,1765337458079,-500.0,0.00015968,2]
[398049004,1765337458093,-506.56691453,0.00015968,2]
[398049005,1765337458107,-500.0,0.00015968,2]
[398049006,1765337458122,-500.0,0.00015968,2]
[398049007,1765337458136,-500.0,0.00015968,2]
[398049008,1765337458150,-568.29,0.00015968,2]
[398049009,1765337458164,-500.0,0.00015968,2]
[398049010,1765337458179,-500.0,0.00015968,2]
[398049011,1765337458192,-500.0,0.00015968,2]
[398049012,1765337458206,-500.0,0.00015968,2]
[398049013,1765337458220,-500.0,0.00015968,2]
[398049014,1765337458233,-500.0,0.00015968,2]
[398049015,1765337458247,-500.0,0.00015968,2]
[398049016,1765337458263,-616.10769612,0.00015968,2]
[398049017,1765337458278,-500.0,0.00015968,2]
[398049018,1765337458292,-509.69193358,0.00015968,2]
[398049019,1765337458303,-500.0,0.00015968,2]
[398049020,1765337458312,-500.0,0.00015968,2]
[398049021,1765337458321,-500.0,0.00015968,2]
[398049022,1765337458330,-500.0,0.00015968,2]
[398049023,1765337458340,-799.34,0.00015968,2]
[398049024,1765337458349,-500.0,0.00015968,2]
[398049025,1765337458358,-500.0,0.00015968,2]
[398049026,1765337458367,-500.0,0.00015968,2]
[398049027,1765337458376,-500.0,0.00015968,2]
[398049028,1765337458386,-500.0,0.00015968,2]
[398049029,1765337458395,-500.0,0.00015968,2]
[398049030,1765337458404,-500.0,0.00015968,2]
[398049031,1765337458413,-500.0,0.00015968,2]
[398049032,1765337458423,-500.0,0.00015968,2]
[398049033,1765337458431,-500.0,0.00015968,2]
[398049034,1765337458440,-693.61,0.00015968,2]
[398049035,1765337458750,-500.0,0.00015968,2]
[398049036,1765337458774,-500.0,0.00015968,2]
[398049037,1765337458806,-637.07,0.00015968,2]
[398049038,1765337458822,-500.0,0.00015968,2]
[398049039,1765337458831,-500.0,0.00015968,2]
[398049040,1765337458839,-500.0,0.00015968,2]
[398049041,1765337458849,-500.0,0.00015968,2]
[398049042,1765337458858,-500.0,0.00015968,2]
[398049043,1765337458867,-500.0,0.00015968,2]
[398049044,1765337458875,-897.38,0.00015968,2]
[398049045,1765337458884,-500.0,0.00015968,2]
[398049046,1765337458892,-700.42,0.00015968,2]
[398049047,1765337458901,-741.44,0.00015968,2]
[398049048,1765337458911,-500.0,0.00015968,2]
[398049049,1765337458920,-500.0,0.00015968,2]
[398049050,1765337458930,-728.31,0.00015968,2]
[398049051,1765337458938,-500.0,0.00015968,2]
[398049052,1765337458947,-500.0,0.00015968,2]
[398049053,1765337458956,-500.0,0.00015968,2]
[398049054,1765337458964,-500.0,0.00015968,2]
[398049055,1765337458973,-500.0,0.00015968,2]
[398049056,1765337458982,-500.0,0.00015968,2]
[398049057,1765337458991,-814.31,0.00015968,2]
[398049058,1765337459000,-529.95,0.00015968,2]
[398049059,1765337459009,-798.33,0.00015968,2]
[398049060,1765337459018,-500.0,0.00015968,2]
[398049061,1765337459027,-500.0,0.00015968,2]
[398049062,1765337459036,-500.0,0.00015968,2]
[398049063,1765337459045,-500.0,0.00015968,2]
[398049064,1765337459054,-500.0,0.00015968,2]
[398049065,1765337459063,-500.0,0.00015968,2]
[398049066,1765337459071,-500.0,0.00015968,2]
[398049067,1765337459080,-444.72377409,0.00015968,2]
[398049068,1765337459089,-500.0,0.00015968,2]
[398049069,1765337459098,-500.0,0.00015968,2]
[398049070,1765337459107,-564.25,0.00015968,2]
[398049071,1765337459116,-500.0,0.00015968,2]
[398049072,1765337459125,-500.0,0.00015968,2]
[398049073,1765337459134,-537.96690542,0.00015968,2]
[398049074,1765337459143,-500.0,0.00015968,2]
[398049075,1765337459151,-725.88,0.00015968,2]
[398049076,1765337459160,-500.0,0.00015968,2]
[398049077,1765337459169,-535.37,0.00015968,2]
[398049078,1765337459178,-500.0,0.00015968,2]
[398049079,1765337459187,-639.91,0.00015968,2]
[398049080,1765337459196,-570.18896193,0.00015968,2]
[398049081,1765337459205,-500.0,0.00015968,2]
[398049082,1765337459213,-500.0,0.00015968,2]
[398049083,1765337459223,-503.20378236,0.00015968,2]
[398049084,1765337459233,-500.0,0.00015968,2]
[398049085,1765337459243,-506.45821772,0.00015968,2]
[398049086,1765337459253,-500.0,0.00015968,2]
[398049087,1765337459263,-500.0,0.00015968,2]
[398049088,1765337459273,-500.0,0.00015968,2]
[398049089,1765337459283,-500.0,0.00015968,2]
[398049090,1765337459293,-500.0,0.00015968,2]
[398049091,1765337459302,-520.38,0.00015968,2]
[398049092,1765337459312,-1112.11,0.00015968,2]
[398049093,1765337459322,-500.0,0.00015968,2]
[398049094,1765337459331,-500.0,0.00015968,2]
[398049095,1765337459340,-500.0,0.00015968,2]
[398049096,1765337459349,-500.0,0.00015968,2]
[398049097,1765337459361,-507.01041781,0.00015968,2]
[398049098,1765337459371,-820.89,0.00015968,2]
[398049099,1765337459380,-500.0,0.00015968,2]
[398049100,1765337459390,-551.73,0.00015968,2]
[398049101,1765337459399,-215.95211454,0.00015968,2]
[398049102,1765337459409,-500.0,0.00015968,2]
[398049103,1765337459418,-500.0,0.00015968,2]
[398049104,1765337459428,-500.0,0.00015968,2]
[398049105,1765337459437,-500.0,0.00015968,2]
[398049106,1765337459447,-557.11,0.00015968,2]
[398049107,1765337459456,-500.0,0.00015968,2]
[398049108,1765337459465,-220.14821645,0.00015968,2]
[398049109,1765337459475,-500.0,0.00015968,2]
[398049110,1765337459484,-500.0,0.00015968,2]
[398049111,1765337459493,-500.0,0.00015968,2]
[398049112,1765337459502,-500.0,0.00015968,2]
[398049113,1765337459511,-500.0,0.00015968,2]
[398049114,1765337459520,-500.0,0.00015968,2]
[398049115,1765337459529,-500.0,0.00015968,2]
[398049116,1765337459538,-500.0,0.00015968,2]
[398049117,1765337459547,-500.0,0.00015968,2]
[398049118,1765337459556,-500.0,0.00015968,2]
[398049119,1765337459565,-500.0,0.00015968,2]
[398049120,1765337459574,-500.0,0.00015968,2]
[398049121,1765337459583,-500.0,0.00015968,2]
[398049122,1765337459592,-617.03,0.00015968,2]
[398049123,1765337459600,-500.0,0.00015968,2]
[398049124,1765337459609,-500.0,0.00015968,2]
[398049125,1765337459618,-500.0,0.00015968,2]
[398049126,1765337459627,-500.0,0.00015968,2]
[398049127,1765337459636,-500.0,0.00015968,2]
[398049128,1765337459644,-500.0,0.00015968,2]
[398049129,1765337459653,-507.25879251,0.00015968,2]
[398049130,1765337459662,-500.0,0.00015968,2]
[398049131,1765337459672,-500.0,0.00015968,2]
[398049132,1765337459680,-500.0,0.00015968,2]
[398049133,1765337459689,-604.05641723,0.00015968,2]
[398049134,1765337459698,-609.37,0.00015968,2]
[398049135,1765337459707,-507.69,0.00015968,2]
[398049136,1765337459716,-500.0,0.00015968,2]
[398049137,1765337459727,-500.0,0.00015968,2]
[398049138,1765337459735,-500.0,0.00015968,2]
[398049139,1765337459744,-500.0,0.00015968,2]
[398049140,1765337459753,-500.0,0.00015968,2]
[398049141,1765337459762,-500.0,0.00015968,2]
[398049142,1765337459771,-500.0,0.00015968,2]
[398049143,1765337459780,-500.0,0.00015968,2]
[398049144,1765337459788,-500.0,0.00015968,2]
[398049145,1765337459797,-500.0,0.00015968,2]
[398049146,1765337459806,-500.0,0.00015968,2]
[398049147,1765337459815,-500.0,0.00015968,2]
[398049148,1765337459823,-500.0,0.00015968,2]
[398049149,1765337459832,-500.0,0.00015968,2]
[398049150,1765337459841,-500.0,0.00015968,2]
[398049151,1765337459850,-677.8,0.00015968,2]
[398049152,1765337459859,-500.0,0.00015968,2]
[398049153,1765337459869,-506.70314095,0.00015968,2]
[398049154,1765337459878,-500.0,0.00015968,2]
[398049155,1765337459887,-500.0,0.00015968,2]
[398049156,1765337459896,-500.0,0.00015968,2]
[398049157,1765337459904,-500.0,0.00015968,2]
[398049158,1765337459913,-500.0,0.00015968,2]
[398049159,1765337459923,-535.905332,0.00015968,2]
[398049160,1765337459931,-500.0,0.00015968,2]
[398049161,1765337459941,-1138.92,0.00015968,2]
[398049162,1765337459949,-500.0,0.00015968,2]
[398049163,1765337459958,-500.0,0.00015968,2]
[398049164,1765337459967,-500.0,0.00015968,2]
[398049165,1765337459976,-500.0,0.00015968,2]
[398049166,1765337459985,-500.0,0.00015968,2]
[398049167,1765337459994,-500.0,0.00015968,2]
[398049168,1765337460003,-1170.173949,0.00015968,2]
[398049169,1765337460013,-550.11,0.00015968,2]
[398049170,1765337460022,-500.0,0.00015968,2]
[398049171,1765337460031,-500.0,0.00015968,2]
[398049172,1765337460040,-500.0,0.00015968,2]
[398049173,1765337460049,-500.0,0.00015968,2]
[398049174,1765337460058,-1222.729435,0.00015968,2]
[398049175,1765337460067,-1049.13,0.00015968,2]
[398049176,1765337460076,-500.0,0.00015968,2]
[398049177,1765337460085,-159.497034,0.00015968,2]
[398049178,1765337460094,-500.0,0.00015968,2]
[398049179,1765337460103,-500.0,0.00015968,2]
[398049180,1765337460112,-500.0,0.00015968,2]
[398049181,1765337460122,-849.789509,0.00015968,2]
[398049182,1765337460132,-500.0,0.00015968,2]
[398049183,1765337460141,-864.04,0.00015968,2]
[398049184,1765337460149,-500.0,0.00015968,2]
[398049185,1765337460159,-500.0,0.00015968,2]
[398049186,1765337460168,-500.0,0.00015968,2]
[398049187,1765337460177,-500.0,0.00015968,2]
[398049188,1765337460186,-500.0,0.00015968,2]
[398049189,1765337460195,-535.38093865,0.00015968,2]
[398049190,1765337460204,-500.0,0.00015968,2]
[398049191,1765337460214,-500.0,0.00015968,2]
[398049192,1765337460223,-500.0,0.00015968,2]
[398049193,1765337460232,-568.91,0.00015968,2]
[398049194,1765337460242,-673.18,0.00015968,2]
[398049195,1765337460252,-738.3,0.00015968,2]
[398049196,1765337460262,-500.0,0.00015968,2]
[398049197,1765337460274,-500.0,0.00015968,2]
[398049198,1765337460286,-500.0,0.00015968,2]
[398049199,1765337460296,-500.0,0.00015968,2]
[398049200,1765337460308,-693.85,0.00015968,2]
[398049201,1765337460318,-500.0,0.00015968,2]
[398049202,1765337460327,-500.0,0.00015968,2]
[398049203,1765337460336,-500.0,0.00015968,2]
[398049204,1765337460345,-500.0,0.00015968,2]